[Event "Early-Titled-Tuesday-Blitz-May-28-2024"]
[Site "Chess.com"]
[Date "2024.05.28"]
[Round "5"]
[White "Gryffindorac8"]
[Black "SharapovEvgeny"]
[Result "1/2-1/2"]
[WhiteElo "2473"]
[BlackElo "2610"]
[TimeControl "180+1"]
[EndTime "8:54:59 PDT"]
[Termination "Game drawn by repetition"]

1. d4 {[%clk 0:03:00.9]} 1... d5 {[%clk 0:02:58.1]} 2. c4 {[%clk 0:03:00.6]}
2... c6 {[%clk 0:02:58.7]} 3. Nf3 {[%clk 0:03:00.2]} 3... Nf6 {[%clk 0:02:58.7]}
4. Nc3 {[%clk 0:03:00.5]} 4... e6 {[%clk 0:02:58.8]} 5. g3 {[%clk 0:03:00.4]}
5... Nbd7 {[%clk 0:02:57.8]} 6. Bg2 {[%clk 0:03:00.5]} 6... Be7 {[%clk
0:02:58.3]} 7. O-O {[%clk 0:03:00.5]} 7... O-O {[%clk 0:02:58.5]} 8. Qd3 {[%clk
0:03:00.5]} 8... b6 {[%clk 0:02:57.9]} 9. e4 {[%clk 0:03:00.1]} 9... dxe4 {[%clk
0:02:57.6]} 10. Nxe4 {[%clk 0:03:01]} 10... Bb7 {[%clk 0:02:57.4]} 11. Rd1
{[%clk 0:02:49.6]} 11... c5 {[%clk 0:02:55.4]} 12. Nxf6+ {[%clk 0:02:48.9]}
12... Nxf6 {[%clk 0:02:52.4]} 13. Bg5 {[%clk 0:02:18.2]} 13... cxd4 {[%clk
0:02:49.6]} 14. Nxd4 {[%clk 0:02:16.4]} 14... Bxg2 {[%clk 0:02:47.1]} 15. Kxg2
{[%clk 0:02:16.5]} 15... Qc7 {[%clk 0:02:41.4]} 16. b3 {[%clk 0:02:08.8]} 16...
Rad8 {[%clk 0:02:40.4]} 17. Qf3 {[%clk 0:02:06.3]} 17... h6 {[%clk 0:02:34.8]}
18. Nb5 {[%clk 0:01:59.5]} 18... Qb8 {[%clk 0:02:23.5]} 19. Bf4 {[%clk
0:01:53.5]} 19... e5 {[%clk 0:02:23.2]} 20. Be3 {[%clk 0:01:47.8]} 20... e4
{[%clk 0:02:14.1]} 21. Qe2 {[%clk 0:01:45.1]} 21... a6 {[%clk 0:02:11.7]} 22.
Nc3 {[%clk 0:01:44.2]} 22... Qb7 {[%clk 0:02:09.5]} 23. Rxd8 {[%clk 0:01:40.9]}
23... Rxd8 {[%clk 0:02:08.7]} 24. Rd1 {[%clk 0:01:41]} 24... Rxd1 {[%clk
0:01:46.7]} 25. Qxd1 {[%clk 0:01:41.9]} 25... Bc5 {[%clk 0:01:46.2]} 26. Bxc5
{[%clk 0:01:25.7]} 26... bxc5 {[%clk 0:01:45.8]} 27. Kg1 {[%clk 0:01:14]} 27...
Qe7 {[%clk 0:01:39.1]} 28. Nd5 {[%clk 0:00:54.9]} 28... Nxd5 {[%clk 0:01:38.3]}
29. Qxd5 {[%clk 0:00:35.9]} 29... e3 {[%clk 0:01:33.6]} 30. fxe3 {[%clk
0:00:35.6]} 30... Qxe3+ {[%clk 0:01:33.1]} 31. Kg2 {[%clk 0:00:34.4]} 31... Qe2+
{[%clk 0:01:18.2]} 32. Kg1 {[%clk 0:00:33.1]} 32... Qxa2 {[%clk 0:01:15.6]} 33.
Qxc5 {[%clk 0:00:28.5]} 33... Qxb3 {[%clk 0:01:12.6]} 34. Qc8+ {[%clk
0:00:28.5]} 34... Kh7 {[%clk 0:01:12.5]} 35. Qf5+ {[%clk 0:00:28.5]} 35... Kg8
{[%clk 0:01:12.8]} 36. Qc8+ {[%clk 0:00:28.6]} 36... Kh7 {[%clk 0:01:12.9]} 37.
Qf5+ {[%clk 0:00:28.6]} 37... Kg8 {[%clk 0:01:13.3]} 38. Qc8+ {[%clk 0:00:28.7]}
1/2-1/2

[Event "Early-Titled-Tuesday-Blitz-May-28-2024"]
[Site "Chess.com"]
[Date "2024.05.28"]
[Round "5"]
[White "alex1531"]
[Black "TERMINATOR_PC"]
[Result "0-1"]
[WhiteElo "2442"]
[BlackElo "2598"]
[TimeControl "180+1"]
[EndTime "8:54:59 PDT"]
[Termination "TERMINATOR_PC won by resignation"]

1. e4 {[%clk 0:02:53.8]} 1... e5 {[%clk 0:02:59]} 2. Nf3 {[%clk 0:02:52.7]} 2...
Nc6 {[%clk 0:02:56.4]} 3. Bc4 {[%clk 0:02:52.8]} 3... Nf6 {[%clk 0:02:54.6]} 4.
Ng5 {[%clk 0:02:52.8]} 4... d5 {[%clk 0:02:54.3]} 5. exd5 {[%clk 0:02:52.9]}
5... Na5 {[%clk 0:02:49.6]} 6. d3 {[%clk 0:02:53.1]} 6... h6 {[%clk 0:02:46.4]}
7. Nf3 {[%clk 0:02:52.1]} 7... e4 {[%clk 0:02:45.9]} 8. Qe2 {[%clk 0:02:52.6]}
8... Nxc4 {[%clk 0:02:42.9]} 9. dxc4 {[%clk 0:02:53.5]} 9... Bd6 {[%clk
0:02:41.3]} 10. h3 {[%clk 0:02:43.7]} 10... O-O {[%clk 0:02:40]} 11. Nd4 {[%clk
0:02:42.6]} 11... c5 {[%clk 0:02:30.6]} 12. dxc6 {[%clk 0:02:19.1]} 12... bxc6
{[%clk 0:02:30.6]} 13. Be3 {[%clk 0:02:11.9]} 13... c5 {[%clk 0:02:30.9]} 14.
Nb3 {[%clk 0:02:07.2]} 14... Qe7 {[%clk 0:02:24.5]} 15. Nc3 {[%clk 0:02:04.5]}
15... Be6 {[%clk 0:02:11.4]} 16. Nb5 {[%clk 0:01:51.8]} 16... Rfc8 {[%clk
0:01:40]} 17. Nxd6 {[%clk 0:01:49.2]} 17... Qxd6 {[%clk 0:01:40.9]} 18. O-O
{[%clk 0:01:37.9]} 18... a5 {[%clk 0:01:34.7]} 19. a4 {[%clk 0:01:34.9]} 19...
Rab8 {[%clk 0:01:32.6]} 20. Rfd1 {[%clk 0:01:17]} 20... Qe5 {[%clk 0:01:22.7]}
21. Nxa5 {[%clk 0:00:50]} 21... Qxb2 {[%clk 0:01:17.4]} 22. Nb3 {[%clk
0:00:37.9]} 22... Rxb3 {[%clk 0:01:14]} 23. Rab1 {[%clk 0:00:15.3]} 23... Qxb1
{[%clk 0:01:13]} 24. Rxb1 {[%clk 0:00:16.2]} 24... Rxb1+ {[%clk 0:01:13.5]} 25.
Kh2 {[%clk 0:00:16.6]} 25... Ra1 {[%clk 0:01:14]} 26. Qd2 {[%clk 0:00:11.2]}
26... Rxa4 {[%clk 0:01:12.7]} 27. Qd6 {[%clk 0:00:11.7]} 27... Rxc4 {[%clk
0:01:11.2]} 0-1

[Event "Early-Titled-Tuesday-Blitz-May-28-2024"]
[Site "Chess.com"]
[Date "2024.05.28"]
[Round "5"]
[White "PattyCastillo"]
[Black "talaicito"]
[Result "0-1"]
[WhiteElo "1827"]
[BlackElo "2257"]
[TimeControl "180+1"]
[EndTime "8:55:02 PDT"]
[Termination "talaicito won by resignation"]

1. d4 {[%clk 0:02:59.4]} 1... e6 {[%clk 0:02:58.7]} 2. Nf3 {[%clk 0:02:59.6]}
2... f5 {[%clk 0:02:57.5]} 3. e3 {[%clk 0:02:59.4]} 3... Nf6 {[%clk 0:02:58.4]}
4. Bd3 {[%clk 0:02:59.3]} 4... b6 {[%clk 0:02:58.4]} 5. O-O {[%clk 0:02:59.8]}
5... Bb7 {[%clk 0:02:59]} 6. Nbd2 {[%clk 0:03:00.3]} 6... a5 {[%clk 0:02:54.4]}
7. b3 {[%clk 0:03:00.5]} 7... Na6 {[%clk 0:02:51.1]} 8. a3 {[%clk 0:02:59.7]}
8... Bd6 {[%clk 0:02:50.7]} 9. Bb2 {[%clk 0:02:58.2]} 9... O-O {[%clk
0:02:51.2]} 10. Qe2 {[%clk 0:02:58.2]} 10... Ne4 {[%clk 0:02:50.3]} 11. Ne5
{[%clk 0:02:56.2]} 11... Rf6 {[%clk 0:02:47]} 12. f3 {[%clk 0:02:54.3]} 12...
Nxd2 {[%clk 0:02:44.9]} 13. Qxd2 {[%clk 0:02:54.8]} 13... Rh6 {[%clk 0:02:44.4]}
14. Rf2 {[%clk 0:02:40.8]} 14... Qh4 {[%clk 0:02:38.9]} 15. g3 {[%clk
0:02:30.9]} 15... Qh5 {[%clk 0:02:27.4]} 16. Raf1 {[%clk 0:01:58.1]} 16... Qh3
{[%clk 0:02:14.4]} 17. c4 {[%clk 0:01:50.1]} 17... Rf8 {[%clk 0:01:59.6]} 18.
Qe2 {[%clk 0:01:48.8]} 18... Bxe5 {[%clk 0:01:18.2]} 19. dxe5 {[%clk 0:01:48.1]}
19... Nc5 {[%clk 0:01:18.7]} 20. Bc2 {[%clk 0:01:43.1]} 20... Na6 {[%clk
0:00:55]} 21. Bc3 {[%clk 0:01:36.8]} 21... c5 {[%clk 0:00:50.2]} 22. e4 {[%clk
0:01:34.7]} 22... f4 {[%clk 0:00:39.7]} 23. g4 {[%clk 0:01:28.6]} 23... Rg6
{[%clk 0:00:38.6]} 24. Rg2 {[%clk 0:01:26.5]} 24... h5 {[%clk 0:00:33.4]} 25.
gxh5 {[%clk 0:01:21.5]} 25... Rxg2+ {[%clk 0:00:28.6]} 26. Qxg2 {[%clk
0:01:21.4]} 26... Qxh5 {[%clk 0:00:28.5]} 27. Rf2 {[%clk 0:01:18.4]} 27... g5
{[%clk 0:00:25.1]} 28. Qg4 {[%clk 0:01:18.3]} 28... Qxg4+ {[%clk 0:00:18.2]} 29.
fxg4 {[%clk 0:01:19.2]} 29... Kg7 {[%clk 0:00:17.7]} 30. Kg2 {[%clk 0:01:19.5]}
30... Kg6 {[%clk 0:00:17.8]} 31. Kf3 {[%clk 0:01:19.8]} 31... Rh8 {[%clk
0:00:18.1]} 32. Rg2 {[%clk 0:01:19.5]} 32... Rh3+ {[%clk 0:00:18.2]} 0-1

[Event "Early-Titled-Tuesday-Blitz-May-28-2024"]
[Site "Chess.com"]
[Date "2024.05.28"]
[Round "5"]
[White "HansOnTwitch"]
[Black "dozer80"]
[Result "1-0"]
[WhiteElo "3126"]
[BlackElo "2714"]
[TimeControl "180+1"]
[EndTime "8:55:07 PDT"]
[Termination "HansOnTwitch won by resignation"]

1. e4 {[%clk 0:02:59.9]} 1... c5 {[%clk 0:02:59.8]} 2. Nf3 {[%clk 0:03:00.1]}
2... Nc6 {[%clk 0:02:59.6]} 3. Bb5 {[%clk 0:03:00.1]} 3... e6 {[%clk 0:02:57.3]}
4. O-O {[%clk 0:03:00.4]} 4... Nge7 {[%clk 0:02:55.6]} 5. Re1 {[%clk 0:03:00.4]}
5... a6 {[%clk 0:02:55.5]} 6. Bf1 {[%clk 0:03:00.1]} 6... d5 {[%clk 0:02:55.5]}
7. d3 {[%clk 0:02:59.2]} 7... Ng6 {[%clk 0:02:20.4]} 8. Bg5 {[%clk 0:02:49.9]}
8... Be7 {[%clk 0:02:19]} 9. Bxe7 {[%clk 0:02:43]} 9... Ncxe7 {[%clk 0:02:19.9]}
10. h4 {[%clk 0:02:42.2]} 10... O-O {[%clk 0:01:32.8]} 11. h5 {[%clk 0:02:41.5]}
11... Nf4 {[%clk 0:01:25.1]} 12. h6 {[%clk 0:02:42.1]} 12... g6 {[%clk
0:01:21.1]} 13. g3 {[%clk 0:02:34]} 13... Nh5 {[%clk 0:01:18.7]} 14. Nbd2 {[%clk
0:02:33.9]} 14... Nc6 {[%clk 0:01:17.8]} 15. e5 {[%clk 0:02:30.7]} 15... f6
{[%clk 0:01:16.1]} 16. Bg2 {[%clk 0:02:20.8]} 16... fxe5 {[%clk 0:01:11.1]} 17.
Nxe5 {[%clk 0:02:21.7]} 17... Qf6 {[%clk 0:01:11.1]} 18. Ndf3 {[%clk 0:02:16.3]}
18... Nxe5 {[%clk 0:00:45.7]} 19. Rxe5 {[%clk 0:02:17.2]} 19... Bd7 {[%clk
0:00:44]} 20. Qd2 {[%clk 0:02:16.3]} 20... Rae8 {[%clk 0:00:39.7]} 21. Rae1
{[%clk 0:02:15.7]} 21... Bc6 {[%clk 0:00:30.2]} 22. Ng5 {[%clk 0:02:15.5]} 22...
Bd7 {[%clk 0:00:25.3]} 23. Bh3 {[%clk 0:02:15.6]} 23... Qd8 {[%clk 0:00:05.8]}
24. Bxe6+ {[%clk 0:02:09.9]} 24... Kh8 {[%clk 0:00:04.5]} 25. Qc3 {[%clk
0:02:03.4]} 25... d4 {[%clk 0:00:04.3]} 26. Qxc5 {[%clk 0:01:41.4]} 26... Qf6
{[%clk 0:00:04.1]} 27. Ne4 {[%clk 0:01:30.6]} 27... Qf3 {[%clk 0:00:01.8]} 28.
Bxd7 {[%clk 0:01:26.7]} 28... Nf4 {[%clk 0:00:01.3]} 29. gxf4 {[%clk 0:01:23.8]}
1-0

[Event "Early-Titled-Tuesday-Blitz-May-28-2024"]
[Site "Chess.com"]
[Date "2024.05.28"]
[Round "5"]
[White "microbear"]
[Black "InitiatingASC"]
[Result "0-1"]
[WhiteElo "2289"]
[BlackElo "2428"]
[TimeControl "180+1"]
[EndTime "8:55:10 PDT"]
[Termination "InitiatingASC won by resignation"]

1. e4 {[%clk 0:03:00.9]} 1... e5 {[%clk 0:02:56.7]} 2. Nf3 {[%clk 0:02:59.2]}
2... Nf6 {[%clk 0:02:56.9]} 3. Bc4 {[%clk 0:02:54.5]} 3... Nc6 {[%clk
0:02:51.9]} 4. d3 {[%clk 0:02:53.5]} 4... d5 {[%clk 0:02:46.3]} 5. exd5 {[%clk
0:02:50]} 5... Nxd5 {[%clk 0:02:46.5]} 6. h3 {[%clk 0:02:44.9]} 6... Be7 {[%clk
0:02:41.6]} 7. O-O {[%clk 0:02:41.7]} 7... Be6 {[%clk 0:02:38]} 8. Bxd5 {[%clk
0:02:36.2]} 8... Qxd5 {[%clk 0:02:34.1]} 9. Nc3 {[%clk 0:02:36.2]} 9... Qd7
{[%clk 0:02:32.6]} 10. Be3 {[%clk 0:02:27.5]} 10... f6 {[%clk 0:02:30.3]} 11. d4
{[%clk 0:02:26.9]} 11... exd4 {[%clk 0:02:20.3]} 12. Nxd4 {[%clk 0:02:26.1]}
12... Nxd4 {[%clk 0:02:16.9]} 13. Qxd4 {[%clk 0:02:27]} 13... Qxd4 {[%clk
0:02:07.1]} 14. Bxd4 {[%clk 0:02:27.9]} 14... O-O-O {[%clk 0:02:06.3]} 15. Bxa7
{[%clk 0:02:08.9]} 15... b6 {[%clk 0:02:01.2]} 16. Rfe1 {[%clk 0:02:08.4]} 16...
Rd6 {[%clk 0:01:47.8]} 17. Nb5 {[%clk 0:01:59.7]} 17... Kd7 {[%clk 0:01:42.6]}
18. Nxd6 {[%clk 0:01:54.8]} 18... Bxd6 {[%clk 0:01:42.5]} 19. Re4 {[%clk
0:01:21.8]} 19... Ra8 {[%clk 0:01:14.4]} 20. Ra4 {[%clk 0:00:37.8]} 20... Kc6
{[%clk 0:01:04.8]} 21. Re1 {[%clk 0:00:30.2]} 21... Bf7 {[%clk 0:00:57.8]} 22.
c4 {[%clk 0:00:20.2]} 22... Kb7 {[%clk 0:00:53.9]} 23. b3 {[%clk 0:00:18.6]}
23... Rxa7 {[%clk 0:00:49.4]} 24. Rxa7+ {[%clk 0:00:19.5]} 24... Kxa7 {[%clk
0:00:49.9]} 25. Kf1 {[%clk 0:00:20.4]} 25... Kb7 {[%clk 0:00:47.6]} 26. Rd1
{[%clk 0:00:21.1]} 26... Kc6 {[%clk 0:00:46.5]} 27. Ke2 {[%clk 0:00:21.7]} 27...
Bh5+ {[%clk 0:00:44.6]} 28. Ke3 {[%clk 0:00:22.3]} 28... Bxd1 {[%clk 0:00:44.5]}
0-1

[Event "Early-Titled-Tuesday-Blitz-May-28-2024"]
[Site "Chess.com"]
[Date "2024.05.28"]
[Round "5"]
[White "zurzan"]
[Black "chess_sharparchitect"]
[Result "0-1"]
[WhiteElo "2137"]
[BlackElo "2368"]
[TimeControl "180+1"]
[EndTime "8:55:15 PDT"]
[Termination "chess_sharparchitect won by resignation"]

1. Nf3 {[%clk 0:03:00.9]} 1... d5 {[%clk 0:02:57.7]} 2. b3 {[%clk 0:03:00.6]}
2... Nf6 {[%clk 0:02:52.5]} 3. Bb2 {[%clk 0:03:01.4]} 3... c5 {[%clk 0:02:38.3]}
4. e3 {[%clk 0:02:59]} 4... e6 {[%clk 0:02:37.4]} 5. c4 {[%clk 0:02:58.3]} 5...
Nc6 {[%clk 0:02:33.6]} 6. Be2 {[%clk 0:02:55.7]} 6... Be7 {[%clk 0:02:29.4]} 7.
d3 {[%clk 0:02:51.6]} 7... O-O {[%clk 0:02:21.9]} 8. O-O {[%clk 0:02:51.5]} 8...
a6 {[%clk 0:02:19.4]} 9. Ne5 {[%clk 0:02:50.3]} 9... Nxe5 {[%clk 0:02:12.1]} 10.
Bxe5 {[%clk 0:02:51.2]} 10... b5 {[%clk 0:02:12.4]} 11. cxd5 {[%clk 0:02:49]}
11... exd5 {[%clk 0:02:00.4]} 12. Nd2 {[%clk 0:02:44.1]} 12... Re8 {[%clk
0:01:56.7]} 13. Bb2 {[%clk 0:02:42.4]} 13... Bb7 {[%clk 0:01:46]} 14. Rc1 {[%clk
0:02:39.9]} 14... Rc8 {[%clk 0:01:45.6]} 15. Nf3 {[%clk 0:02:36.9]} 15... Bd6
{[%clk 0:01:43.3]} 16. h3 {[%clk 0:02:35.4]} 16... h6 {[%clk 0:01:42.6]} 17. Re1
{[%clk 0:02:33.5]} 17... Qe7 {[%clk 0:01:41.5]} 18. Bf1 {[%clk 0:02:28.8]} 18...
Rcd8 {[%clk 0:01:26.6]} 19. a3 {[%clk 0:02:21.7]} 19... Nh7 {[%clk 0:01:25.5]}
20. Qc2 {[%clk 0:02:09.7]} 20... Ng5 {[%clk 0:01:23.8]} 21. Nxg5 {[%clk
0:02:02.8]} 21... Qxg5 {[%clk 0:01:23.1]} 22. f4 {[%clk 0:01:47.6]} 22... Qg6
{[%clk 0:01:12.7]} 23. Qf2 {[%clk 0:01:41.4]} 23... Bc8 {[%clk 0:01:01.6]} 24.
g3 {[%clk 0:01:27.9]} 24... Bf5 {[%clk 0:01:01]} 25. Rcd1 {[%clk 0:01:25.1]}
25... Re7 {[%clk 0:00:53.4]} 26. g4 {[%clk 0:01:21.5]} 26... Bc8 {[%clk
0:00:49]} 27. Kh1 {[%clk 0:01:20.4]} 27... Bb7 {[%clk 0:00:47.9]} 28. Bg2 {[%clk
0:01:19.5]} 28... f5 {[%clk 0:00:43.7]} 29. Rg1 {[%clk 0:01:16.9]} 29... fxg4
{[%clk 0:00:30]} 30. f5 {[%clk 0:01:16.1]} 30... Qh5 {[%clk 0:00:25]} 31. f6
{[%clk 0:01:13]} 31... Rf7 {[%clk 0:00:22.1]} 32. h4 {[%clk 0:01:05.2]} 32... g3
{[%clk 0:00:21.4]} 33. Qf3 {[%clk 0:01:03.5]} 33... Qxh4+ {[%clk 0:00:21.1]} 0-1

[Event "Early-Titled-Tuesday-Blitz-May-28-2024"]
[Site "Chess.com"]
[Date "2024.05.28"]
[Round "5"]
[White "FoggyMorning"]
[Black "platy3"]
[Result "0-1"]
[WhiteElo "2650"]
[BlackElo "2879"]
[TimeControl "180+1"]
[EndTime "8:55:18 PDT"]
[Termination "platy3 won by resignation"]

1. e4 {[%clk 0:03:00.9]} 1... c5 {[%clk 0:02:59.3]} 2. Nf3 {[%clk 0:03:00.7]}
2... e6 {[%clk 0:02:59.9]} 3. d4 {[%clk 0:03:00.9]} 3... cxd4 {[%clk 0:03:00.8]}
4. Nxd4 {[%clk 0:03:01.6]} 4... Nc6 {[%clk 0:03:01.3]} 5. Nc3 {[%clk 0:03:02]}
5... Qc7 {[%clk 0:03:01.7]} 6. g3 {[%clk 0:03:01.9]} 6... a6 {[%clk 0:03:01.4]}
7. Bg2 {[%clk 0:03:01.8]} 7... h5 {[%clk 0:03:02]} 8. h3 {[%clk 0:02:57.6]} 8...
Nf6 {[%clk 0:02:58.9]} 9. O-O {[%clk 0:02:53.1]} 9... h4 {[%clk 0:02:35.2]} 10.
g4 {[%clk 0:02:43.1]} 10... Nxd4 {[%clk 0:02:35.3]} 11. Qxd4 {[%clk 0:02:43.4]}
11... Bc5 {[%clk 0:02:36]} 12. Qd3 {[%clk 0:02:30]} 12... d6 {[%clk 0:02:33.2]}
13. Be3 {[%clk 0:02:24.6]} 13... Bd7 {[%clk 0:02:17.5]} 14. Rad1 {[%clk
0:02:20.7]} 14... Bc6 {[%clk 0:02:15.1]} 15. Bxc5 {[%clk 0:02:09]} 15... dxc5
{[%clk 0:02:16]} 16. Qc4 {[%clk 0:01:52.8]} 16... Nd7 {[%clk 0:02:01.6]} 17. f4
{[%clk 0:01:35.2]} 17... b5 {[%clk 0:02:01.1]} 18. Qe2 {[%clk 0:01:35.8]} 18...
O-O-O {[%clk 0:01:41.6]} 19. a4 {[%clk 0:01:31.9]} 19... b4 {[%clk 0:01:30.2]}
20. Na2 {[%clk 0:01:23.8]} 20... Qb7 {[%clk 0:01:29.8]} 21. b3 {[%clk
0:01:12.3]} 21... Nf6 {[%clk 0:01:27]} 22. Rde1 {[%clk 0:00:52]} 22... Rd4
{[%clk 0:01:22.5]} 23. c3 {[%clk 0:00:44]} 23... bxc3 {[%clk 0:01:18]} 24. Nxc3
{[%clk 0:00:44.9]} 24... Rhd8 {[%clk 0:01:18]} 25. g5 {[%clk 0:00:42]} 25... Ne8
{[%clk 0:01:11.3]} 26. Rc1 {[%clk 0:00:33]} 26... Nd6 {[%clk 0:01:09.4]} 27.
Rfd1 {[%clk 0:00:27.4]} 27... Kb8 {[%clk 0:01:07.9]} 28. e5 {[%clk 0:00:12.5]}
28... Nf5 {[%clk 0:01:06.1]} 29. Qf2 {[%clk 0:00:04.9]} 29... Bxg2 {[%clk
0:01:04.5]} 30. Ne2 {[%clk 0:00:02.3]} 30... Rxd1+ {[%clk 0:01:03.8]} 31. Rxd1
{[%clk 0:00:03.2]} 31... Rxd1+ {[%clk 0:01:04.2]} 0-1

[Event "Early-Titled-Tuesday-Blitz-May-28-2024"]
[Site "Chess.com"]
[Date "2024.05.28"]
[Round "5"]
[White "Goryachkina"]
[Black "Shankland"]
[Result "0-1"]
[WhiteElo "2688"]
[BlackElo "2985"]
[TimeControl "180+1"]
[EndTime "8:55:20 PDT"]
[Termination "Shankland won by resignation"]

1. Nf3 {[%clk 0:02:59.4]} 1... d5 {[%clk 0:02:58.3]} 2. g3 {[%clk 0:02:58.8]}
2... g6 {[%clk 0:02:57.5]} 3. Bg2 {[%clk 0:02:58.3]} 3... Bg7 {[%clk 0:02:57.7]}
4. d4 {[%clk 0:02:58.2]} 4... Nf6 {[%clk 0:02:56.5]} 5. c4 {[%clk 0:02:57.5]}
5... c6 {[%clk 0:02:56.3]} 6. cxd5 {[%clk 0:02:57.2]} 6... cxd5 {[%clk
0:02:55.9]} 7. Nc3 {[%clk 0:02:56.9]} 7... Nc6 {[%clk 0:02:55.6]} 8. Ne5 {[%clk
0:02:56.4]} 8... O-O {[%clk 0:02:55.4]} 9. O-O {[%clk 0:02:54.9]} 9... e6 {[%clk
0:02:55.6]} 10. Bg5 {[%clk 0:02:46.5]} 10... Qa5 {[%clk 0:02:46.3]} 11. Nxc6
{[%clk 0:02:27.9]} 11... bxc6 {[%clk 0:02:47.2]} 12. Qd2 {[%clk 0:02:23.3]}
12... Rb8 {[%clk 0:02:20.8]} 13. Rac1 {[%clk 0:02:05.9]} 13... Ba6 {[%clk
0:02:14.3]} 14. b3 {[%clk 0:01:59]} 14... Rfc8 {[%clk 0:02:07.2]} 15. Rfe1
{[%clk 0:01:47.2]} 15... Nd7 {[%clk 0:02:01.7]} 16. e4 {[%clk 0:01:33.3]} 16...
Rb4 {[%clk 0:01:54.5]} 17. Na4 {[%clk 0:00:40.3]} 17... Bxd4 {[%clk 0:01:49.5]}
18. exd5 {[%clk 0:00:19.3]} 18... cxd5 {[%clk 0:01:25.1]} 19. Rxc8+ {[%clk
0:00:18.5]} 19... Bxc8 {[%clk 0:01:25]} 20. Rc1 {[%clk 0:00:18.3]} 20... Ba6
{[%clk 0:01:11.6]} 21. a3 {[%clk 0:00:16.9]} 21... Rxa4 {[%clk 0:01:11.5]} 22.
bxa4 {[%clk 0:00:17.1]} 22... Qxa4 {[%clk 0:01:06.2]} 23. h4 {[%clk 0:00:16.5]}
23... h5 {[%clk 0:01:05.4]} 24. Rc7 {[%clk 0:00:15.3]} 24... Ne5 {[%clk
0:00:59]} 25. Qf4 {[%clk 0:00:10.1]} 25... Qd1+ {[%clk 0:00:57.4]} 0-1

[Event "Early-Titled-Tuesday-Blitz-May-28-2024"]
[Site "Chess.com"]
[Date "2024.05.28"]
[Round "5"]
[White "OparinGrigoriy"]
[Black "Flawless_Fighter"]
[Result "1-0"]
[WhiteElo "3051"]
[BlackElo "2703"]
[TimeControl "180+1"]
[EndTime "8:55:21 PDT"]
[Termination "OparinGrigoriy won by resignation"]

1. Nc3 {[%clk 0:03:00.9]} 1... d5 {[%clk 0:02:59.3]} 2. d4 {[%clk 0:03:00.8]}
2... Nf6 {[%clk 0:02:59.2]} 3. Bf4 {[%clk 0:03:01]} 3... a6 {[%clk 0:02:59.2]}
4. e3 {[%clk 0:03:00.8]} 4... e6 {[%clk 0:02:57.4]} 5. g4 {[%clk 0:02:57.9]}
5... Bb4 {[%clk 0:02:57.9]} 6. Bd3 {[%clk 0:02:52]} 6... c5 {[%clk 0:02:55]} 7.
dxc5 {[%clk 0:02:51.5]} 7... Nc6 {[%clk 0:02:50.8]} 8. Bd6 {[%clk 0:02:39.1]}
8... Nd7 {[%clk 0:02:50.2]} 9. a3 {[%clk 0:02:26.6]} 9... Nxc5 {[%clk
0:02:39.7]} 10. axb4 {[%clk 0:02:20.3]} 10... Nxd3+ {[%clk 0:02:38.7]} 11. cxd3
{[%clk 0:02:19.9]} 11... Qxd6 {[%clk 0:02:39.4]} 12. b5 {[%clk 0:02:20.1]} 12...
Ne5 {[%clk 0:02:33]} 13. Nf3 {[%clk 0:02:11.4]} 13... O-O {[%clk 0:02:29.3]} 14.
Nxe5 {[%clk 0:02:06.3]} 14... Qxe5 {[%clk 0:02:29.6]} 15. d4 {[%clk 0:02:06.9]}
15... Qd6 {[%clk 0:02:27.1]} 16. O-O {[%clk 0:02:05.9]} 16... Bd7 {[%clk
0:02:25.1]} 17. bxa6 {[%clk 0:02:04.9]} 17... Rxa6 {[%clk 0:02:21.4]} 18. Qe2
{[%clk 0:02:01.8]} 18... Rfa8 {[%clk 0:02:18.9]} 19. Rxa6 {[%clk 0:02:02.1]}
19... Qxa6 {[%clk 0:02:17]} 20. Qxa6 {[%clk 0:01:59.5]} 20... Rxa6 {[%clk
0:02:17.9]} 21. Rc1 {[%clk 0:01:59.8]} 21... Kf8 {[%clk 0:02:13]} 22. f3 {[%clk
0:01:59.7]} 22... Ke7 {[%clk 0:02:09]} 23. Kf2 {[%clk 0:02:00.3]} 23... g5
{[%clk 0:02:08.6]} 24. e4 {[%clk 0:01:59.5]} 24... Rb6 {[%clk 0:02:06.5]} 25.
Rc2 {[%clk 0:01:59]} 25... Kd6 {[%clk 0:01:47.2]} 26. Ke3 {[%clk 0:01:58.1]}
26... f6 {[%clk 0:01:46.2]} 27. h4 {[%clk 0:01:43.7]} 27... h6 {[%clk
0:01:45.4]} 28. Rh2 {[%clk 0:01:42.6]} 28... Rb3 {[%clk 0:01:04.1]} 29. hxg5
{[%clk 0:01:40.7]} 29... hxg5 {[%clk 0:01:03.7]} 30. exd5 {[%clk 0:01:31.3]}
30... exd5 {[%clk 0:01:02]} 31. Kd3 {[%clk 0:01:31]} 31... Bb5+ {[%clk
0:00:55.1]} 32. Kc2 {[%clk 0:01:28.4]} 32... Bc4 {[%clk 0:00:55.5]} 33. Rh6
{[%clk 0:01:02.1]} 33... Ke6 {[%clk 0:00:55.2]} 34. f4 {[%clk 0:01:01.2]} 34...
gxf4 {[%clk 0:00:49.7]} 35. g5 {[%clk 0:01:02.1]} 35... Kf5 {[%clk 0:00:49.7]}
36. g6 {[%clk 0:01:00.3]} 36... Ke6 {[%clk 0:00:43.4]} 37. Rh8 {[%clk
0:00:59.9]} 1-0